bitfinex/quotes_ETHUSD_20240530
["timestamp","ask_amount","ask_price","bid_price","bid_amount"]
[1717049719340,7.32297454,3771.1,3770.9,0.03281692]
[1717049720628,12.36,3772.0,3771.1,2.4628]
[1717049720629,7.32297454,3771.9,3771.1,2.4628]
[1717049722089,7.32297454,3771.9,3771.3,1.59094]
[1717049722250,1.29789222,3771.8,3771.3,1.59094]
[1717049722435,1.29789222,3771.8,3771.4,0.03281692]
[1717049722631,1.29789222,3771.8,3771.3,1.59094]
[1717049723063,1.29789222,3771.8,3771.4,0.03281692]
[1717049723477,0.55,3771.7,3770.3,2.3966]
[1717049723678,1.29789222,3771.6,3770.3,2.3966]
[1717049723830,1.29789222,3771.6,3770.4,0.03259479]
[1717049723831,0.55,3771.5,3770.4,0.03259479]
[1717049724033,1.29789222,3771.4,3770.4,0.03259479]
[1717049724284,0.55,3771.3,3770.3,2.3966]
[1717049724484,1.89506892,3771.2,3770.5,0.03259479]
[1717049724654,1.29789222,3771.2,3770.1,1.59145]
[1717049724864,1.29789222,3771.2,3770.6,0.03259479]
[1717049725062,1.29789222,3771.2,3770.1,1.59145]
[1717049725238,1.29789222,3771.2,3770.7,0.03259479]
[1717049725434,1.29789222,3771.2,3770.1,1.59145]
[1717049725634,3.78099222,3771.0,3769.5,1.59169]
[1717049725855,3.78099222,3771.0,3770.2,0.03259479]
[1717049725856,0.55,3770.9,3770.2,0.03259479]
[1717049726084,0.55,3770.9,3769.5,3.52169]
[1717049726257,0.57403452,3770.9,3769.5,3.52169]
[1717049726440,1.46429394,3770.9,3769.7,1.59161]
[1717049726640,0.89025942,3770.9,3769.7,1.59161]
[1717049727385,1.29789222,3770.8,3769.8,0.03312158]
[1717049727889,0.55,3770.7,3769.8,0.03312158]
[1717049728052,1.29789222,3770.6,3769.8,0.03312158]
[1717049728553,1.29789222,3770.6,3769.8,2.12559474]
[1717049729381,7.32297454,3771.0,3770.0,1.59148]
[1717049729588,1.29789222,3770.9,3770.0,1.59148]
[1717049729767,7.32297454,3771.0,3770.2,1.5914]
[1717049730365,7.32297454,3771.0,3770.3,0.03327571]
[1717049730688,1.59091,3771.5,3770.3,0.03327571]
[1717049730689,7.32297454,3771.4,3770.3,0.03327571]
[1717049730982,6.30258374,3771.3,3770.3,0.03327571]
[1717049731157,0.57394307,3771.2,3770.2,1.5914]
[1717049731363,1.29789222,3771.1,3770.2,1.5914]
[1717049733348,7.32297454,3771.4,3770.7,1.93]
[1717049733583,8.62086676,3771.4,3770.8,0.352127]
[1717049733753,7.32297454,3771.4,3770.8,1.59115]
[1717049734175,7.32297454,3771.4,3770.9,2.4597]
[1717049734494,7.32297454,3771.4,3771.1,1.93]
[1717049734663,7.32297454,3772.1,3771.1,1.93]
[1717049735013,1.29789222,3772.0,3771.1,1.93]
[1717049736375,7.32297454,3772.1,3771.2,1.59098]
[1717049736580,1.29789222,3772.0,3771.2,1.59098]
[1717049738299,7.32297454,3772.1,3771.2,1.59098]
[1717049738469,7.32297454,3772.1,3771.5,1.93]
[1717049738671,7.32297454,3772.1,3771.6,0.43561]
[1717049738859,19.68297454,3772.6,3771.6,0.43561]
[1717049739054,1.29789222,3772.5,3771.7,0.06235658]
[1717049739285,0.57371452,3772.5,3771.7,1.59078]
[1717049739983,1.29789222,3772.4,3771.7,1.59078]
[1717049740206,2.1599789,3772.4,3771.8,0.06235658]
[1717049740410,2.1599789,3772.4,3771.1,3.521]
[1717049740411,2.4132,3772.3,3771.1,3.521]
[1717049740721,1.29789222,3772.2,3771.9,0.06160774]
[1717049740924,1.29789222,3772.2,3771.1,1.591]
[1717049740925,1.87159686,3772.2,3771.1,1.591]
[1717049741098,2.68628521,3772.2,3771.1,1.591]
[1717049741298,2.68628521,3772.2,3771.2,0.06160774]
[1717049741494,1.59068,3772.0,3771.2,0.06160774]
[1717049741710,1.84789222,3771.9,3771.2,0.06160774]
[1717049741917,0.70122769,3771.8,3770.5,1.59126]
[1717049742118,1.29789222,3771.7,3770.5,1.59126]
[1717049742311,1.29789222,3771.7,3770.7,1.59119]
[1717049743328,1.29789222,3771.7,3770.9,1.93]
[1717049743627,1.29789222,3771.7,3771.0,0.06113111]
[1717049743928,1.29789222,3771.7,3771.0,0.41936322]
[1717049744084,7.32297454,3771.9,3771.2,1.59097]
[1717049744702,7.32297454,3771.9,3771.3,0.06113111]
[1717049744927,14.7732,3772.3,3771.3,0.06113111]
[1717049744928,1.29789222,3771.8,3771.3,0.06113111]
[1717049745232,1.29789222,3771.8,3771.2,1.59097]
[1717049745430,0.57382021,3772.1,3771.2,1.943067]
[1717049745591,1.29789222,3772.0,3771.2,1.943067]
[1717049746018,1.29789222,3772.0,3771.3,2.2639]
[1717049746217,1.29789222,3772.0,3771.4,0.05302537]
[1717049747086,19.68297454,3772.3,3771.5,1.59087]
[1717049747292,19.68297454,3772.3,3771.6,0.58377954]
[1717049747492,19.68297454,3772.3,3771.6,0.64473871]
[1717049748588,19.68297454,3772.3,3771.8,1.59074]
[1717049748790,19.68297454,3772.3,3771.9,2.4168]
[1717049749105,8.38514254,3772.9,3772.0,1.59066]
[1717049749309,3.57366305,3772.8,3772.1,0.400746]
[1717049749509,3.0,3772.8,3772.1,0.400746]
[1717049751032,9.68303476,3772.9,3772.1,0.400746]
[1717049756865,8.38514254,3772.9,3772.6,1.93]
[1717049757476,8.38514254,3772.9,3772.7,0.06059391]
[1717049758982,7.32297454,3772.9,3772.8,1.59033]
[1717049759137,7.32297454,3773.6,3772.8,1.59033]
[1717049759334,1.87146694,3773.5,3772.8,1.6508344]
[1717049759576,1.87146694,3773.5,3772.8,1.59033]
[1717049759777,1.87146694,3773.5,3772.9,0.0605044]
[1717049761481,1.87146694,3773.5,3773.0,1.59021]
[1717049761482,0.57357472,3773.5,3773.0,1.59021]
[1717049761647,0.57357472,3773.5,3773.3,1.93]
[1717049761847,7.32297454,3773.6,3773.4,0.06040775]
[1717049764788,7.32297454,3773.6,3773.4,1.65044775]
[1717049765024,7.32297454,3773.6,3773.5,0.35804478]
[1717049765220,7.32297454,3773.6,3773.5,0.41798007]
[1717049765388,7.32297454,3774.3,3773.5,0.41798007]
[1717049765572,1.29789222,3774.2,3773.5,0.35804478]
[1717049765774,1.29789222,3774.2,3773.6,0.38780848]
[1717049766695,1.29789222,3774.2,3773.4,1.59004]
[1717049767014,2.4622,3774.1,3772.9,1.59028]
[1717049767325,1.84789222,3774.0,3773.0,0.0598673]
[1717049767514,3.52752518,3774.0,3773.0,0.0598673]
[1717049767679,0.57350286,3773.9,3772.9,1.59028]
[1717049767881,1.29789222,3773.8,3772.9,3.52028]
[1717049768382,1.29789222,3773.8,3773.0,0.05985656]
[1717049768578,2.4622,3774.1,3773.1,1.59018]
[1717049768821,1.29789222,3774.0,3773.1,1.59018]
[1717049769393,1.29789222,3774.0,3773.2,0.05999256]
[1717049770280,2.4618,3774.5,3773.3,1.5901]
[1717049770511,1.29789222,3774.2,3773.3,1.5901]
[1717049770721,1.29789222,3774.2,3773.4,0.05799281]
[1717049770922,1.29789222,3774.2,3773.5,3.96209]
[1717049771238,1.29789222,3774.2,3773.6,0.59500828]
[1717049771406,1.29789222,3774.2,3773.6,0.65300109]
[1717049771941,12.36,3774.6,3773.7,1.58994]
[1717049772436,12.36,3774.6,3773.8,0.05799281]
[1717049772589,12.36,3774.6,3773.7,1.58994]
[1717049772797,12.36,3774.6,3773.7,2.04564483]
[1717049773123,12.36,3774.6,3773.8,0.05799281]
[1717049773643,12.36,3774.6,3773.9,0.05799281]
[1717049773935,12.36,3774.6,3773.7,2.04564483]
[1717049774120,12.36,3774.6,3774.0,0.05799281]
[1717049774329,12.36,3774.6,3773.7,2.04564483]
[1717049774531,12.36,3774.6,3774.1,0.05799281]
[1717049774837,12.36,3774.6,3773.8,0.50127531]
[1717049775047,12.36,3774.6,3773.9,0.05799281]
[1717049776822,1.29789222,3774.2,3773.9,0.05799281]
[1717049777026,1.29789222,3774.2,3773.7,1.58994]
[1717049777235,1.29789222,3774.2,3773.8,0.05788547]
[1717049777439,1.29789222,3774.2,3773.1,3.90496]
[1717049777737,1.29789222,3774.2,3773.4,0.05788547]
[1717049778234,0.57343151,3774.5,3773.4,0.58928455]
[1717049778440,1.87132373,3774.5,3773.5,1.64788547]
[1717049778640,1.29789222,3774.5,3773.5,1.64788547]
[1717049778794,1.87132373,3774.5,3773.6,1.93]
[1717049778992,1.87132373,3774.5,3773.7,0.416717]
[1717049779220,1.87132373,3774.5,3773.8,0.05788547]
[1717049779221,1.29789222,3774.4,3773.8,0.05788547]
[1717049779500,1.29789222,3774.4,3773.5,1.59]
[1717049779800,1.29789222,3774.4,3773.6,0.05788547]
[1717049780642,1.58969,3774.3,3773.6,0.05788547]
[1717049780937,4.14129222,3774.2,3772.9,1.59025]
[1717049781094,1.58982,3774.0,3773.7,0.05766003]
[1717049781455,1.84789222,3773.9,3772.9,1.59025]
[1717049781686,2.42132373,3773.9,3772.9,1.59025]
[1717049781817,2.42132373,3773.9,3773.0,0.05766003]
[1717049783854,1.58991,3773.8,3773.0,0.05766003]
[1717049784010,1.29789222,3773.7,3772.4,3.52049]
[1717049784217,4.0649,3773.6,3772.4,1.59049]
[1717049784413,1.59008,3773.4,3772.5,0.05766003]
[1717049784716,1.84789222,3773.3,3772.2,1.93]
[1717049785012,2.42132373,3773.3,3772.2,1.93]
[1717049785442,2.42132373,3773.3,3772.3,0.05791053]
[1717049786015,3.24006644,3773.3,3772.3,0.05791053]
[1717049786219,0.57343151,3773.2,3771.9,3.5207]
[1717049786424,1.84789222,3773.1,3771.9,3.5207]
[1717049786625,1.84789222,3773.1,3772.0,0.05791053]
[1717049786836,1.84789222,3773.1,3772.3,1.93]
[1717049787223,1.84789222,3773.1,3772.4,0.05791053]
[1717049787622,1.84789222,3773.1,3772.1,0.59474105]
[1717049788049,1.84789222,3773.1,3772.2,0.05831853]
[1717049788944,1.84789222,3773.1,3772.3,1.59053]
[1717049788945,1.29789222,3773.1,3772.3,1.59053]
[1717049789147,0.57365122,3773.3,3772.4,0.22435896]
[1717049789647,0.57365122,3773.3,3772.5,0.05831853]
[1717049790569,7.32297454,3773.4,3772.5,0.05831853]
[1717049790769,0.57361519,3773.3,3772.5,0.05831853]
[1717049793469,0.57361519,3773.3,3772.6,2.2862]
[1717049793669,0.57361519,3773.3,3772.7,0.26218838]
[1717049793970,8.62086676,3773.4,3772.8,0.05831853]
[1717049794592,10.32297454,3773.8,3772.8,0.05831853]
[1717049794768,2.9823872,3773.7,3772.8,0.05831853]
[1717049794967,0.573536,3773.7,3772.9,1.59028]
[1717049795281,0.573536,3773.7,3773.0,0.38407869]
[1717049795654,0.573528,3773.7,3773.1,0.05831853]
[1717049795872,0.573528,3773.7,3773.1,1.98831853]
[1717049796465,7.32297454,3773.8,3773.2,3.99465]
[1717049796679,19.68297454,3774.2,3773.3,0.05822547]
[1717049796880,1.87133477,3774.1,3773.4,0.59828755]
[1717049797395,1.87133477,3774.1,3773.5,0.05822547]
[1717049798477,1.87132869,3774.1,3773.5,0.05822547]
[1717049799575,0.57343647,3774.1,3773.5,0.05822547]
[1717049799985,7.32297454,3774.2,3773.5,0.05822547]
[1717049800294,7.32297454,3774.2,3773.5,1.98822547]
[1717049800510,7.32297454,3774.6,3773.6,0.2586513]
[1717049800656,1.87129763,3774.5,3773.6,0.2586513]
[1717049800854,1.87129763,3774.5,3773.7,0.05785324]
[1717049801072,1.29789222,3774.5,3773.7,0.05785324]
[1717049801271,1.87129548,3774.5,3773.7,0.05785324]
[1717049801501,1.87129548,3774.5,3773.8,0.22465045]
[1717049805392,0.57340326,3774.5,3773.9,2.2889]
[1717049805793,0.57340326,3774.5,3774.0,0.05785324]
[1717049806708,0.57340326,3774.7,3774.0,0.05785324]
[1717049806885,1.29789222,3774.7,3774.1,0.25714037]
[1717049807396,0.57340326,3774.8,3774.2,0.05785324]
[1717049807570,1.87129548,3774.8,3774.2,0.05785324]
[1717049807893,1.29789222,3774.8,3774.2,0.05785324]
[1717049808200,1.29789222,3774.8,3774.1,0.25714037]
[1717049808697,1.29789222,3774.8,3774.2,0.05785324]
[1717049809057,1.29789222,3774.8,3774.1,0.25714037]
[1717049809283,1.29789222,3774.8,3774.2,0.05785324]
[1717049811209,1.29089222,3774.8,3774.2,0.05785324]
[1717049811411,1.29089222,3774.8,3774.2,0.3182426]
[1717049812010,1.29089222,3774.8,3774.2,0.05785324]
[1717049812305,1.29089222,3774.8,3773.8,0.22465045]
[1717049812512,1.29089222,3774.8,3773.9,0.05785324]
[1717049814319,1.29089222,3774.8,3774.0,2.2558]
[1717049814684,1.29089222,3774.8,3774.1,0.05750976]
[1717049814923,1.29089222,3774.8,3774.2,0.23133098]
[1717049815853,0.57337376,3774.9,3774.2,0.23133098]
[1717049816033,1.87126598,3774.9,3774.3,0.05750976]
[1717049819635,1.29789222,3774.9,3774.3,0.05750976]
[1717049819836,0.57334432,3774.9,3774.3,0.05750976]
[1717049820035,0.57334432,3774.9,3774.4,1.58965]
[1717049820261,0.57334432,3774.9,3774.5,0.18784907]
[1717049820471,12.36,3775.3,3774.6,0.05750976]
[1717049820472,0.57334432,3775.2,3774.6,0.05750976]
[1717049820673,1.87123654,3775.2,3774.5,0.18784907]
[1717049820972,1.87123654,3775.2,3774.6,0.05750976]
[1717049823142,1.87123654,3775.2,3774.7,2.4888]
[1717049823388,1.87123654,3775.2,3774.8,0.27341588]
[1717049823559,1.87123654,3775.2,3774.8,0.33063591]
[1717049824039,1.29789222,3775.2,3774.8,0.33063591]
[1717049826363,1.29789222,3775.2,3774.8,0.05722003]
[1717049826767,1.29789222,3775.2,3774.5,0.18784907]
[1717049826974,1.29789222,3775.2,3774.9,0.05710917]
[1717049827155,1.29789222,3775.2,3774.5,0.18784907]
[1717049827354,1.29789222,3775.2,3775.0,0.05710917]
[1717049827554,1.29789222,3775.2,3774.5,0.18784907]
[1717049827791,1.29789222,3775.2,3775.1,0.05710917]
[1717049827990,1.29789222,3775.2,3774.6,0.41539991]
[1717049828384,1.29789222,3775.2,3774.9,0.801]
[1717049828953,1.29789222,3775.2,3775.0,0.05710917]
[1717049836164,1.29789222,3775.2,3775.1,0.801]
[1717049836906,1.29789222,3775.2,3775.1,3.051]
[1717049837061,1.29789222,3775.2,3775.1,3.515046]
[1717049837260,1.29789222,3775.2,3775.1,0.52101927]
[1717049837572,1.29789222,3775.2,3775.1,0.85797327]
[1717049837779,1.29789222,3775.2,3775.1,3.12007327]
[1717049838378,0.57327932,3775.7,3775.1,3.12007327]
[1717049838708,1.87117154,3775.7,3775.6,0.801]
[1717049840413,1.29789222,3775.7,3775.6,0.801]
[1717049840910,8.38413954,3776.4,3775.6,0.801]
[1717049841089,4.87106593,3776.3,3775.6,0.801]
[1717049841280,0.57317371,3776.2,3775.8,0.801]
[1717049841480,1.29789222,3776.1,3775.8,0.801]
[1717049843013,1.29789222,3776.1,3775.3,1.58925]
[1717049843211,1.29789222,3776.1,3775.7,0.801]
[1717049844284,1.29789222,3776.1,3775.4,0.385135]
[1717049844485,1.29789222,3776.1,3775.6,0.801]
[1717049846313,1.12218592,3776.1,3775.6,0.801]
[1717049847502,1.12218592,3776.1,3775.4,1.186135]
[1717049847705,1.12218592,3776.1,3775.5,0.2775385]
[1717049848008,1.12218592,3776.1,3775.1,2.2621]
[1717049848247,2.4249,3776.0,3774.8,3.86057]
[1717049848382,1.29789222,3775.9,3775.1,0.801]
[1717049848583,0.801,3775.6,3774.9,0.05667649]
[1717049848776,0.801,3775.2,3773.6,1.58995]
[1717049848992,2.4768,3775.0,3774.2,0.801]
[1717049849214,1.29789222,3774.9,3773.6,1.58995]
[1717049849530,1.87108475,3774.9,3773.6,1.58995]
[1717049849683,1.87108475,3774.9,3774.0,0.801]
[1717049850020,0.57319253,3774.9,3774.6,0.801]
[1717049850329,0.57337722,3775.1,3774.6,0.801]
[1717049851083,0.57337722,3775.1,3774.1,2.4454]
[1717049851084,0.57337722,3775.1,3774.8,0.801]
[1717049851340,0.57337722,3775.1,3775.0,0.801]
[1717049852426,0.57337722,3775.1,3774.3,3.51269]
[1717049852627,7.32297454,3775.2,3774.7,2.4941]
[1717049852815,0.57328717,3775.1,3774.7,2.4941]
[1717049853601,0.57328717,3775.5,3774.7,2.4941]
[1717049853797,0.57328717,3775.5,3774.8,1.58948]
[1717049854543,0.57328717,3775.5,3774.9,0.05284109]
[1717049854725,0.57328717,3775.5,3775.0,0.60594211]
[1717049855192,0.57328717,3775.5,3775.1,0.05284109]
[1717049859202,0.57318045,3775.9,3775.1,0.05284109]
[1717049859648,0.57318045,3775.9,3775.0,0.60594211]
[1717049859850,0.57318045,3775.9,3775.1,0.21954221]
[1717049861536,1.87107267,3775.9,3775.1,0.21954221]
[1717049862562,1.87107267,3775.9,3775.2,0.05291976]
[1717049863085,1.29789222,3775.8,3774.8,1.58948]
[1717049863280,1.31825272,3775.7,3774.8,1.58948]
[1717049863568,3.69739222,3775.6,3774.9,0.05285183]
[1717049863744,0.57318045,3775.5,3774.9,0.05285183]
[1717049863946,1.29789222,3775.4,3774.9,0.05285183]
[1717049867575,1.29789222,3775.4,3774.8,1.58948]
[1717049867777,1.29789222,3775.4,3774.9,0.158948]
[1717049868394,0.5732932,3775.5,3775.0,0.05309137]
[1717049868685,8.91195454,3776.0,3774.9,0.158948]
[1717049868686,0.5732932,3775.9,3775.1,4.08764]
[1717049869048,0.5732932,3775.9,3775.3,1.58926]
[1717049869248,0.5732932,3775.9,3775.4,0.41406156]
[1717049869749,0.5732932,3775.9,3775.5,0.05305562]
[1717049871154,0.5732932,3776.3,3775.5,0.05305562]
[1717049871474,1.29789222,3776.2,3775.4,0.41406156]
[1717049872448,1.29789222,3776.2,3775.6,0.801]
[1717049873387,1.29789222,3776.2,3775.6,1.08143216]
[1717049873571,0.5732932,3776.3,3775.6,1.08143216]
[1717049874593,0.5732932,3776.3,3776.1,0.801]
[1717049875092,0.57308423,3776.7,3776.2,0.0527768]
[1717049875391,1.29789222,3776.6,3776.2,0.0527768]
[1717049875939,1.29789222,3776.6,3776.1,0.801]
[1717049876111,1.29789222,3776.6,3776.2,0.0527768]
[1717049876275,1.29789222,3776.6,3776.1,0.801]
[1717049876973,1.29789222,3776.6,3776.3,0.801]
[1717049877173,1.29789222,3776.6,3776.1,1.12842]
[1717049877411,1.29789222,3776.6,3775.8,2.4732]
[1717049877612,0.57308423,3776.7,3775.8,2.4732]
[1717049877813,1.87097645,3776.7,3776.0,0.801]
[1717049877999,0.57308423,3776.7,3776.0,0.801]
[1717049878518,0.57308423,3776.7,3776.2,0.801]
[1717049878876,0.57308423,3776.7,3776.2,1.040002]
[1717049879523,0.57308423,3776.7,3776.2,0.239002]
[1717049879885,0.57308423,3776.8,3776.3,0.05233713]
[1717049880099,0.57308423,3776.8,3776.2,0.239002]
[1717049880933,0.57308423,3776.8,3775.9,1.58902]
[1717049880934,1.29789222,3776.7,3775.9,1.58902]
[1717049881099,1.29789222,3776.7,3776.0,0.801]
[1717049881810,1.29789222,3776.7,3776.2,0.801]
[1717049882207,0.57308423,3776.8,3776.2,0.801]
[1717049883287,0.57308423,3776.8,3776.4,0.801]
[1717049883589,0.57308423,3776.8,3775.9,1.58902]
[1717049883790,0.57308423,3776.8,3776.5,0.801]
[1717049884190,0.57308423,3776.8,3776.3,0.801]
[1717049885025,2.3578,3778.3,3777.2,1.58844]
[1717049885242,2.3578,3778.3,3776.0,0.406222]
[1717049885243,1.29789222,3778.0,3776.8,2.2831]
[1717049885413,1.29789222,3778.0,3777.1,0.801]
[1717049886136,1.29789222,3778.0,3777.2,0.05207629]
[1717049886303,0.801,3777.3,3777.2,0.05207629]
[1717049886525,6.24853956,3777.3,3777.2,0.05207629]
[1717049886829,1.58855,3777.1,3776.0,0.801]
[1717049887028,0.801,3776.9,3776.0,0.801]
[1717049887342,1.29789222,3776.8,3776.1,0.04824524]
[1717049887635,1.29789222,3776.8,3776.0,0.801]
[1717049889019,1.29789222,3776.8,3775.5,2.431]
[1717049889412,1.29789222,3776.8,3776.1,0.801]
[1717049891007,1.29789222,3776.8,3775.7,1.58907]
[1717049891219,1.29789222,3776.8,3776.2,0.801]
[1717049892508,1.29789222,3776.8,3775.8,0.43005022]
[1717049892742,1.29789222,3776.8,3776.1,0.801]
[1717049893039,1.29789222,3776.8,3776.3,0.801]
[1717049897041,1.29789222,3776.8,3776.1,0.801]
[1717049900160,0.57307246,3776.9,3776.3,0.801]
[1717049900466,0.57307246,3776.9,3776.0,1.58896]
[1717049900616,0.57307246,3776.9,3776.3,0.238996]
[1717049900817,0.57307246,3776.9,3776.4,0.801]
[1717049901015,0.57307246,3776.9,3776.6,0.801]
[1717049901958,0.57307246,3776.9,3776.8,0.801]
[1717049902373,2.3315,3777.3,3776.8,0.801]
[1717049902525,1.29789222,3777.2,3776.8,0.801]
[1717049902720,1.87087589,3777.2,3776.8,0.801]
[1717049903422,1.29789222,3777.2,3777.0,0.801]
[1717049904015,1.29789222,3777.2,3776.4,1.58878]
[1717049904220,1.29789222,3777.2,3776.9,0.801]
[1717049904722,1.29789222,3777.2,3777.0,0.04845244]
[1717049905059,1.29789222,3777.2,3776.9,0.801]
[1717049905358,0.57293544,3777.5,3776.9,0.801]
[1717049905565,1.87082766,3777.5,3776.9,0.801]
[1717049905857,1.29789222,3777.5,3776.9,0.801]
[1717049906063,1.87083474,3777.5,3776.9,0.801]
[1717049906229,0.57294252,3777.5,3776.9,2.3896]
[1717049906439,0.57294252,3777.5,3777.0,0.23896]
[1717049906752,0.57294252,3777.5,3777.1,0.04683736]
[1717049907163,0.57293857,3777.5,3777.1,0.04683736]
[1717049907856,0.57293857,3777.5,3777.1,0.84783736]
[1717049910648,0.57293857,3777.5,3777.3,0.801]
[1717049910858,7.32297454,3777.6,3777.3,0.801]
[1717049911046,0.5729183,3777.5,3777.3,0.801]
[1717049911463,7.32297454,3777.6,3777.3,0.801]
[1717049911958,3.0,3778.0,3777.3,0.801]
[1717049912165,1.87079038,3777.9,3777.3,0.801]
[1717049912368,1.87079038,3777.9,3777.0,0.23896]
[1717049912665,1.87079038,3777.9,3777.4,0.801]
[1717049914250,1.29789222,3777.9,3777.4,0.801]
[1717049914877,1.29789222,3777.9,3777.2,0.801]
[1717049915085,1.29789222,3777.9,3777.4,0.801]
[1717049916353,0.57289816,3778.0,3777.4,1.1414856]
[1717049916561,1.87079038,3778.0,3777.4,1.1414856]
[1717049918581,1.87079038,3778.0,3777.2,0.801]
[1717049918733,1.29789222,3778.0,3777.2,0.801]
[1717049918936,1.87078041,3778.0,3777.2,0.801]
[1717049919175,1.87078041,3778.0,3777.4,0.801]
[1717049920240,1.8707758,3778.0,3777.4,0.801]
[1717049920906,1.8707758,3778.0,3777.1,0.182756]
[1717049921110,3.68708222,3777.9,3777.0,0.801]
[1717049921311,0.57288358,3777.8,3777.0,0.801]
[1717049921620,1.29789222,3777.7,3777.0,0.801]
[1717049922000,1.29789222,3777.7,3777.1,0.04643014]
[1717049922203,1.29789222,3777.7,3777.0,0.801]
[1717049922497,1.29789222,3777.7,3777.2,0.04643014]
[1717049922804,1.29789222,3777.7,3776.6,1.58872]
[1717049923004,1.29789222,3777.7,3777.2,0.801]
[1717049926144,0.57288358,3777.8,3777.2,0.801]
[1717049926294,1.29789222,3777.8,3777.2,0.801]
[1717049926489,1.8707758,3777.8,3777.4,0.801]
[1717049928127,0.57288358,3777.8,3777.4,0.801]
[1717049928331,3.13567558,3778.1,3777.4,0.801]
[1717049928532,1.29789222,3778.0,3777.4,0.801]
[1717049928839,1.8707758,3778.0,3777.4,0.801]
[1717049930437,1.8707758,3778.0,3777.2,0.801]
[1717049935056,3.4589358,3778.0,3776.8,1.58863]
[1717049935352,0.57288358,3777.9,3777.2,0.801]
[1717049935556,1.29789222,3777.8,3777.2,0.801]
[1717049936057,1.29789222,3777.8,3777.0,0.801]
[1717049936662,1.29789222,3777.8,3776.9,0.40559798]
[1717049936951,1.29789222,3777.8,3777.1,0.801]
[1717049937312,1.29789222,3777.8,3776.9,0.40559798]
[1717049937521,1.29789222,3777.8,3777.1,0.801]
[1717049938969,1.29789222,3777.8,3776.9,0.40559798]
[1717049939263,1.29789222,3777.8,3777.1,0.801]
[1717049939621,1.58827,3777.7,3777.1,0.801]
[1717049939961,1.29789222,3777.6,3777.1,0.801]
[1717049940524,1.87080295,3777.6,3777.1,0.801]
[1717049944035,1.87082863,3777.6,3777.1,0.801]
[1717049944972,0.57293641,3777.6,3777.3,0.801]
[1717049945175,0.57293641,3778.0,3777.3,0.801]
[1717049945474,1.29789222,3777.9,3777.3,0.801]
[1717049946590,1.29789222,3777.9,3777.1,0.801]
[1717049947552,2.4987,3777.7,3776.2,1.58887]
[1717049947892,0.801,3777.3,3776.3,0.04660514]
[1717049948037,1.29789222,3777.2,3776.4,0.801]
[1717049948546,1.29789222,3777.2,3776.5,0.04660514]
[1717049949169,1.29789222,3777.2,3776.6,0.801]
[1717049949540,1.29789222,3777.2,3776.7,0.04674446]
[1717049952412,1.29789222,3777.2,3776.8,0.801]
[1717049952908,1.29789222,3777.2,3776.6,0.801]
[1717049953396,1.29789222,3777.2,3776.7,0.04673017]
[1717049953593,1.29789222,3777.2,3776.8,0.801]
[1717049954297,1.29789222,3777.2,3776.7,0.801]
[1717049954688,1.29789222,3777.2,3776.8,0.04673017]
[1717049954996,1.29789222,3777.2,3776.7,0.801]
[1717049955174,1.29789222,3777.2,3776.9,0.801]
[1717049955370,0.57293641,3777.3,3776.9,0.801]
[1717049955726,1.29789222,3777.3,3776.9,0.801]
[1717049955870,1.87082863,3777.3,3776.9,0.801]
[1717049956070,2.2998,3777.2,3776.6,0.801]
[1717049956272,2.87273641,3777.2,3776.6,0.801]
[1717049956516,2.87273641,3777.2,3776.7,0.04673017]
[1717049957067,4.17062863,3777.2,3776.7,0.04673017]
[1717049957302,0.57293641,3777.1,3776.7,0.04673017]
[1717049958571,0.57303647,3777.1,3776.7,0.04673017]
[1717049959798,0.57303647,3777.1,3776.6,0.801]
[1717049960223,0.5730286,3777.1,3776.7,0.04662327]
[1717049960379,0.57302537,3777.1,3776.7,0.04662327]
[1717049961396,0.57302484,3777.1,3776.7,0.04662327]
[1717049962476,1.29789222,3777.2,3776.8,0.801]
[1717049962979,1.29789222,3777.2,3776.6,0.801]
[1717049963403,1.29789222,3777.2,3776.7,0.04662327]
[1717049963915,2.4842,3777.0,3776.7,0.04662327]
[1717049964122,1.29789222,3776.9,3775.7,3.9561]
[1717049964420,1.87090473,3776.9,3775.7,3.9561]
[1717049964617,1.87090473,3776.9,3775.2,1.5893]
[1717049964618,1.5888,3776.5,3775.2,1.5893]
[1717049964788,1.5888,3776.5,3775.7,0.801]
[1717049964789,1.29789222,3776.4,3775.7,0.801]
[1717049964982,1.87090473,3776.4,3775.7,0.801]
[1717049965378,1.87090473,3776.4,3775.3,0.38815]
[1717049965379,1.87090473,3776.4,3775.5,0.801]
[1717049966301,1.87090473,3776.4,3775.7,0.801]
[1717049966724,1.87090473,3776.4,3775.8,0.04654826]
[1717049967075,1.87090473,3776.4,3775.6,0.801]
[1717049967621,1.87090473,3776.4,3775.7,0.04654826]
[1717049968739,2.3899,3776.2,3775.7,0.04654826]
[1717049968883,1.29789222,3776.1,3775.7,0.04654826]
[1717049969079,1.87090473,3776.1,3775.2,0.801]
[1717049969512,1.87090473,3776.1,3775.4,0.801]
[1717049969886,1.87090473,3776.1,3775.3,0.801]
[1717049970289,1.87090473,3776.1,3775.4,0.04371976]
[1717049970851,1.87090473,3776.1,3775.3,0.801]
[1717049971332,1.87090473,3776.1,3775.4,0.04371976]
[1717049971507,1.87090473,3776.1,3775.5,0.801]
[1717049971907,0.801,3775.8,3774.7,2.421]
[1717049972105,3.79229222,3775.7,3774.9,0.801]
[1717049972318,3.79229222,3775.7,3775.1,0.801]
[1717049974234,7.32297454,3775.9,3775.3,0.801]
[1717049974433,1.29789222,3775.8,3775.3,0.801]
[1717049974740,1.29789222,3775.8,3775.1,0.801]
[1717049974961,1.87112691,3775.8,3775.3,0.801]
[1717049975296,1.29789222,3775.8,3775.3,0.801]
[1717049975736,1.87112581,3775.8,3775.3,0.801]
[1717049976302,1.87112581,3775.8,3775.1,0.801]
[1717049976698,1.29789222,3775.8,3775.1,0.801]
[1717049976892,1.29789222,3775.8,3774.7,2.421]
[1717049977101,1.29789222,3775.8,3775.3,0.801]
[1717049980201,1.29789222,3775.8,3775.1,0.801]
[1717049982911,2.362,3775.7,3774.8,0.401053]
[1717049983111,1.29789222,3775.6,3774.6,1.58953]
[1717049983342,1.29789222,3775.6,3774.9,0.04279157]
[1717049983545,1.87112081,3775.6,3774.9,0.801]
[1717049983728,1.29789222,3775.6,3775.0,0.04279157]